bitfinex/quotes_BTCUSD_20230114
["timestamp","ask_amount","ask_price","bid_price","bid_amount"]
[1673688114983,0.4772,20372.0,20361.0,0.982244]
[1673688114984,0.20100113,20372.0,20361.0,0.982244]
[1673688115221,0.07747792,20372.0,20362.0,0.617705]
[1673688115473,0.07747792,20372.0,20365.0,0.49058201]
[1673688115735,0.07747792,20372.0,20366.0,0.67435054]
[1673688115984,0.07747792,20372.0,20367.0,0.25105554]
[1673688116218,0.04812766,20380.0,20368.0,0.67431754]
[1673688116467,0.04812766,20380.0,20371.0,0.981758]
[1673688116468,0.12414963,20378.0,20371.0,0.981758]
[1673688116713,0.00050703,20380.0,20372.0,0.67424254]
[1673688116951,0.00050703,20380.0,20373.0,0.25099454]
[1673688117196,0.12656817,20377.0,20375.0,0.490795]
[1673688117446,0.00050703,20380.0,20376.0,0.25096354]
[1673688117703,0.25,20387.0,20374.0,0.981601]
[1673688117704,0.39473866,20391.0,20377.0,0.67416154]
[1673688117938,0.09397562,20388.0,20382.0,0.05671054]
[1673688118255,0.19072595,20391.0,20383.0,0.37405054]
[1673688118256,0.04521981,20391.0,20383.0,0.37405054]
[1673688118503,0.0737,20393.0,20384.0,0.194169]
[1673688118504,0.10125036,20386.0,20384.0,0.194169]
[1673688118752,0.04521981,20387.0,20385.0,0.317304]
[1673688118990,0.04521981,20387.0,20386.0,0.19386871]
[1673688119228,0.04521981,20390.0,20386.0,0.25057925]
[1673688119556,0.04513255,20388.0,20387.0,0.37398054]
[1673688119787,0.04513255,20388.0,20381.0,0.10130237]
[1673688119788,1.30853821,20388.0,20381.0,0.02738237]
[1673688119991,0.69935364,20387.0,20382.0,0.10538291]
[1673688120204,0.74203764,20386.0,20381.0,0.02738237]
[1673688120445,0.19072595,20386.0,20381.0,0.08409291]
[1673688120671,0.17411,20391.0,20382.0,0.54733154]
[1673688120672,0.1,20391.0,20382.0,0.54733154]
[1673688120929,0.03561057,20390.0,20383.0,0.05679254]
[1673688121156,0.03561057,20390.0,20382.0,0.490621]
[1673688121157,0.1,20391.0,20385.0,0.981094]
[1673688121367,0.1,20394.0,20391.0,0.03085524]
[1673688121619,0.1,20394.0,20392.0,0.24546454]
[1673688121826,0.00719423,20397.0,20393.0,0.35671054]
[1673688121827,0.25,20396.0,20393.0,0.35671054]
[1673688122070,0.25,20396.0,20394.0,0.24543254]
[1673688122289,0.0001,20400.0,20395.0,0.35671054]
[1673688122498,0.0001,20400.0,20397.0,0.14613006]
[1673688122735,0.0001,20400.0,20398.0,0.490244]
[1673688122956,0.03071057,20405.0,20399.0,0.59002226]
[1673688123178,0.3910342,20418.0,20404.0,0.58387032]
[1673688123470,0.3910342,20418.0,20405.0,1.15614181]
[1673688123471,0.47720169,20418.0,20405.0,1.15614181]
[1673688123652,0.07447,20420.0,20408.0,0.97820896]
[1673688123863,0.04762063,20426.0,20412.0,0.40080567]
[1673688124091,0.07447,20429.0,20416.0,1.469425]
[1673688124301,0.07447,20429.0,20417.0,0.87567028]
[1673688124302,0.1177399,20423.0,20417.0,0.87567028]
[1673688124659,0.07447,20426.0,20419.0,0.489717]
[1673688124660,0.10337874,20424.0,20419.0,0.489717]
[1673688124908,0.10337874,20424.0,20420.0,0.188403]
[1673688124909,0.13165478,20423.0,20420.0,0.188403]
[1673688125188,0.07444,20431.0,20420.0,0.489714]
[1673688125434,0.11252525,20422.0,20420.0,0.8899206]
[1673688125722,0.11252525,20422.0,20416.0,0.485117]
[1673688125723,0.5,20421.0,20416.0,0.485117]
[1673688125979,0.19072595,20420.0,20413.0,0.75053764]
[1673688126227,0.19072595,20419.0,20418.0,0.13182896]
[1673688126485,0.07433,20424.0,20418.0,0.13182896]
[1673688126486,0.20707641,20424.0,20421.0,0.09987131]
[1673688126732,0.46156528,20429.0,20417.0,0.489766]
[1673688126733,0.04762063,20429.0,20417.0,0.489766]
[1673688127039,0.19072595,20428.0,20418.0,0.188417]
[1673688127279,0.19072595,20428.0,20415.0,0.0743]
[1673688127280,0.6743,20425.0,20415.0,0.27477872]
[1673688127537,0.6743,20425.0,20415.0,0.09525066]
[1673688127538,0.51322695,20424.0,20415.0,0.09525066]
[1673688127780,0.22204795,20423.0,20412.0,0.25197801]
[1673688128036,0.19072595,20422.0,20414.0,0.1]
[1673688128293,0.19072595,20421.0,20414.0,0.1]
[1673688128536,0.19072595,20420.0,20415.0,0.188453]
[1673688128792,0.19072595,20420.0,20414.0,0.1]
[1673688129037,0.19072595,20420.0,20415.0,0.188458]
[1673688129293,0.07399,20427.0,20415.0,0.87704728]
[1673688129616,0.19072595,20426.0,20421.0,0.1]
[1673688129826,0.16578339,20432.0,20422.0,0.03207323]
[1673688130085,0.16578339,20432.0,20419.0,0.46128528]
[1673688130086,0.57720169,20432.0,20423.0,0.22043923]
[1673688130349,0.1,20427.0,20424.0,0.03207323]
[1673688130593,0.1,20432.0,20425.0,0.188336]
[1673688130906,0.1,20432.0,20426.0,0.25972718]
[1673688131161,0.1,20432.0,20427.0,0.57304022]
[1673688131406,0.1,20432.0,20428.0,0.22037723]
[1673688131662,0.1,20432.0,20427.0,0.3]
[1673688131663,0.1,20432.0,20429.0,0.33207323]
[1673688131929,0.1,20432.0,20430.0,0.188282]
[1673688132185,0.1,20431.0,20430.0,1.0]
[1673688132434,0.1,20431.0,20430.0,0.488279]
[1673688132698,0.6,20431.0,20430.0,0.488279]
[1673688133231,0.1,20432.0,20430.0,0.52035223]
[1673688133542,0.488959,20452.0,20431.0,1.10151804]
[1673688133791,0.47720169,20450.0,20435.0,0.03207323]
[1673688134047,0.47720169,20449.0,20438.0,0.01440424]
[1673688134296,0.14810036,20450.0,20439.0,0.21917528]
[1673688134558,0.12501004,20451.0,20440.0,0.68736272]
[1673688134916,0.00058171,20455.0,20450.0,0.01440424]
[1673688135023,0.12070977,20451.0,20445.0,0.01440424]
[1673688135280,0.12070977,20451.0,20446.0,0.21910423]
[1673688135281,0.19072595,20451.0,20446.0,0.21910423]
[1673688135540,0.19072595,20451.0,20447.0,0.10444116]
[1673688135788,0.00058171,20455.0,20443.0,0.489161]
[1673688135789,0.2639553,20446.0,20443.0,2.0]
[1673688136042,0.2639553,20446.0,20438.0,0.563874]
[1673688136043,0.2639553,20446.0,20444.0,0.11397723]
[1673688136277,0.2639553,20446.0,20439.0,0.07448]
[1673688136278,0.45468125,20446.0,20439.0,0.46023068]
[1673688136541,0.19072595,20445.0,20438.0,0.01440424]
[1673688136798,0.19072595,20444.0,20435.0,0.38575068]
[1673688137053,0.26243262,20446.0,20440.0,0.09594264]
[1673688137054,0.51308995,20443.0,20440.0,0.09594264]
[1673688137320,0.51308995,20443.0,20436.0,0.38575068]
[1673688137321,0.1,20443.0,20436.0,0.38575068]
[1673688137553,0.19072595,20442.0,20437.0,0.18715]
[1673688137815,0.19072595,20441.0,20431.0,0.1]
[1673688138061,0.1,20443.0,20431.0,0.1]
[1673688138062,0.66792764,20440.0,20431.0,0.6]
[1673688138305,0.58532936,20437.0,20431.0,0.59978388]
[1673688138564,0.51308995,20439.0,20431.0,0.59978388]
[1673688138565,0.70047064,20436.0,20431.0,0.71283887]
[1673688138816,0.26243262,20446.0,20432.0,0.39959445]
[1673688139096,0.45315857,20446.0,20438.0,0.01467064]
[1673688139352,0.36264485,20446.0,20439.0,0.39916698]
[1673688139599,0.26243262,20446.0,20440.0,0.187115]
[1673688139904,0.26243262,20446.0,20445.0,0.1]
[1673688140120,0.26243262,20446.0,20445.0,0.187064]
[1673688140385,0.00161567,20450.0,20445.0,0.20173464]
[1673688140633,0.00161567,20450.0,20448.0,0.01467064]
[1673688140881,0.00161567,20450.0,20449.0,0.187015]
[1673688141184,0.00161567,20450.0,20449.0,0.88583354]
[1673688141381,0.00161567,20450.0,20449.0,1.27035428]
[1673688141636,0.35356966,20468.0,20450.0,0.00016156]
[1673688141900,0.12616981,20456.0,20451.0,0.39824259]
[1673688142151,0.19072595,20455.0,20452.0,0.01467064]
[1673688142406,0.10606444,20456.0,20450.0,0.00016156]
[1673688142407,0.10606444,20456.0,20451.0,0.186981]
[1673688142660,0.07436,20458.0,20450.0,5.00016156]
[1673688142661,0.19072595,20455.0,20450.0,5.00016156]
[1673688142918,0.19072595,20455.0,20446.0,0.09874197]
[1673688142919,0.19072595,20454.0,20446.0,0.09874197]
[1673688143163,0.1,20452.0,20446.0,0.39874148]
[1673688143413,0.19072595,20451.0,20445.0,0.01467064]
[1673688143724,0.58532936,20448.0,20440.0,0.1]
[1673688143930,0.47720169,20445.0,20440.0,0.1]
[1673688144185,0.58532936,20441.0,20440.0,0.1]
[1673688144444,1.574011,20441.0,20440.0,0.1]
[1673688144759,1.574011,20441.0,20423.0,0.563775]
[1673688144760,0.2,20439.0,20430.0,0.10237015]
[1673688145075,0.2,20439.0,20420.0,0.07414]
[1673688145076,1.28419,20438.0,20420.0,0.07414]
[1673688145328,0.58371936,20435.0,20422.0,0.38294898]
[1673688145586,0.58371936,20432.0,20423.0,0.12290859]
[1673688145841,0.58371936,20432.0,20414.0,0.30423916]
[1673688145842,0.622364,20431.0,20416.0,0.38226734]
[1673688146088,0.522036,20430.0,20424.0,0.10030525]
[1673688146340,0.51308995,20429.0,20424.0,0.10030525]
[1673688146602,1.18999864,20428.0,20421.0,0.11392531]
[1673688146853,0.99029164,20427.0,20420.0,0.11322769]
[1673688147099,0.70047064,20426.0,20420.0,0.11322769]
[1673688147368,0.47720169,20423.0,20413.0,0.38226734]
[1673688147610,0.47720169,20423.0,20405.0,0.0744]
[1673688147611,0.47720169,20418.0,20405.0,0.0744]
[1673688147865,0.99029164,20417.0,20403.0,0.09057064]
[1673688148118,0.47720169,20413.0,20406.0,3.0]
[1673688148371,0.66792764,20412.0,20400.0,3.0]
[1673688148806,1.15786164,20411.0,20398.0,0.09057064]
[1673688148968,0.99029164,20410.0,20398.0,0.01628064]
[1673688149161,0.99029164,20410.0,20393.0,0.564742]
[1673688149162,0.58371936,20408.0,20393.0,0.32101411]
[1673688149422,0.47720169,20406.0,20393.0,0.01628064]
[1673688149675,0.47720169,20403.0,20392.0,0.01628064]
[1673688149919,0.22326895,20405.0,20391.0,0.03085524]
[1673688149920,0.99029164,20402.0,20391.0,0.03085524]
[1673688150171,1.14801036,20407.0,20391.0,0.03085524]
[1673688150172,0.22326895,20401.0,20391.0,0.03085524]
[1673688150444,0.864094,20411.0,20400.0,0.01628064]
[1673688150445,0.564258,20408.0,20400.0,0.01628064]
[1673688150686,0.06787,20409.0,20400.0,0.09922064]
[1673688150936,0.06787,20409.0,20398.0,0.07438]
[1673688150937,0.47720169,20408.0,20398.0,0.07438]
[1673688151175,0.47720169,20404.0,20391.0,0.12151588]
[1673688151436,0.490166,20402.0,20391.0,0.12151588]
[1673688151684,0.51308995,20401.0,20391.0,0.03085524]
[1673688151940,0.490235,20399.0,20391.0,0.03085524]
[1673688152186,1.29029164,20398.0,20391.0,0.03085524]
[1673688152448,0.22246895,20397.0,20391.0,0.03085524]
[1673688152704,0.488635,20399.0,20391.0,0.03085524]
[1673688152705,0.99029164,20396.0,20391.0,0.03085524]
[1673688152953,0.22244995,20395.0,20391.0,0.03085524]
[1673688153198,0.22244995,20395.0,20387.0,0.02809126]
[1673688153199,0.322364,20394.0,20387.0,0.02809126]
[1673688153446,0.19072595,20395.0,20387.0,0.02755846]
[1673688153447,0.22244995,20393.0,20387.0,0.02755846]
[1673688153728,0.51308995,20392.0,20387.0,0.02755846]
[1673688153995,0.19072595,20392.0,20387.0,0.02755846]
[1673688154238,0.07448,20396.0,20387.0,0.02755846]
[1673688154239,0.09883573,20396.0,20390.0,0.01628064]
[1673688154509,0.564616,20406.0,20395.0,0.01628064]
[1673688154510,0.490056,20406.0,20395.0,0.01628064]
[1673688154764,0.10695233,20397.0,20396.0,0.40121332]
[1673688155023,0.02281815,20397.0,20396.0,0.60591696]
[1673688155310,0.02281815,20397.0,20396.0,1.20470364]
[1673688155762,0.02281815,20397.0,20391.0,0.07448]
[1673688155763,0.2135441,20397.0,20393.0,0.01628064]
[1673688156054,0.1107923,20399.0,20396.0,0.01628064]
[1673688156337,0.13026391,20399.0,20397.0,0.188423]
[1673688156638,0.13026391,20399.0,20398.0,0.40141437]
[1673688156847,0.11466464,20399.0,20398.0,0.40141437]
[1673688157094,0.10277094,20399.0,20398.0,0.88982237]
[1673688157338,0.07448,20413.0,20398.0,0.88482237]
[1673688157339,0.33504442,20412.0,20398.0,0.88482237]
[1673688157638,0.66792764,20411.0,20407.0,0.01628064]
[1673688157879,0.07448,20413.0,20407.0,0.01628064]
[1673688157880,0.47720169,20410.0,20407.0,0.01628064]
[1673688158094,0.564361,20414.0,20407.0,0.01628064]
[1673688158095,0.1,20409.0,20407.0,0.01628064]
[1673688158364,0.07429,20426.0,20408.0,0.39590896]
[1673688158616,0.07405,20426.0,20411.0,0.6]
[1673688158855,0.09026946,20426.0,20424.0,0.01628064]
[1673688159103,0.09026946,20426.0,20425.0,0.188097]
[1673688159349,0.53835331,20433.0,20425.0,0.188082]
[1673688159589,0.91573521,20435.0,20423.0,0.3708462]
[1673688159590,0.07436,20434.0,20423.0,0.3708462]
[1673688159843,0.35232721,20435.0,20432.0,0.01628064]
[1673688160098,0.12337981,20427.0,20426.0,0.01628064]
[1673688160377,0.10358293,20428.0,20422.0,1.0]
[1673688160612,0.19072595,20428.0,20426.0,0.10547064]
[1673688160873,0.42659721,20435.0,20427.0,0.10547064]
[1673688160874,0.09430158,20432.0,20427.0,0.10547064]
[1673688161173,0.35232721,20435.0,20431.0,0.01628064]
[1673688161439,0.35232721,20435.0,20434.0,0.01628064]
[1673688161965,0.35232721,20435.0,20431.0,0.01628064]
[1673688161966,0.42672721,20435.0,20431.0,0.01628064]
[1673688162220,0.13142758,20432.0,20431.0,0.01628064]
[1673688162488,0.35232721,20435.0,20431.0,0.01628064]
[1673688163014,0.35102175,20435.0,20434.0,0.18841064]
[1673688163229,0.35102175,20435.0,20434.0,0.77399875]
[1673688163484,0.35102175,20435.0,20434.0,1.37941564]
[1673688163731,0.75774316,20440.0,20434.0,1.37941564]
[1673688163732,0.4984919,20440.0,20434.0,1.67399063]
[1673688163961,0.4984919,20440.0,20439.0,0.10547064]
[1673688163962,0.35929606,20440.0,20439.0,0.10547064]
[1673688164212,0.17985035,20440.0,20439.0,0.6907248]
[1673688164450,0.13291617,20440.0,20439.0,0.6907248]
[1673688164700,0.13291617,20440.0,20439.0,1.99072642]
[1673688164951,0.69913278,20444.0,20439.0,0.69072642]
[1673688165203,0.69913278,20444.0,20443.0,0.01628064]
[1673688165204,0.16434494,20444.0,20443.0,0.01628064]
[1673688165450,0.02424782,20448.0,20443.0,1.07360832]
[1673688165769,0.00378253,20456.0,20445.0,0.39409014]
[1673688166024,0.00378253,20456.0,20443.0,6.361268]
[1673688166025,0.19072595,20456.0,20447.0,0.01628064]
[1673688166263,0.98364791,20457.0,20446.0,4.0]
[1673688166529,0.19072595,20456.0,20445.0,0.01628064]
[1673688166779,1.4608496,20457.0,20447.0,4.0]
[1673688166780,0.19072595,20455.0,20447.0,4.0]
[1673688167027,1.4608496,20457.0,20445.0,5.01628064]
[1673688167028,0.19072595,20454.0,20445.0,5.01628064]
[1673688167279,0.7704264,20446.0,20445.0,0.1832485]
[1673688167527,0.36649699,20444.0,20442.0,0.15564911]
[1673688167774,0.55722294,20444.0,20443.0,0.41045664]
[1673688168088,0.55489987,20444.0,20443.0,0.01628064]
[1673688168307,0.55489987,20444.0,20442.0,0.15564911]
[1673688168308,0.54128757,20444.0,20442.0,0.15564911]
[1673688168608,0.16718706,20444.0,20442.0,0.15564911]
[1673688168936,0.7704264,20446.0,20443.0,0.20716864]
[1673688169097,0.7704264,20446.0,20444.0,0.1]
[1673688169398,0.7704264,20446.0,20445.0,0.1]
[1673688169639,0.7704264,20446.0,20445.0,3.290865]
[1673688169640,0.76190815,20446.0,20445.0,3.290865]
[1673688169912,0.63480015,20446.0,20445.0,3.290865]
[1673688170174,0.63480015,20446.0,20445.0,3.68487638]
[1673688170417,0.14339339,20455.0,20445.0,4.17560233]
[1673688170743,0.12609339,20455.0,20453.0,0.01628064]
[1673688170975,0.12609339,20455.0,20454.0,0.38148895]
[1673688171229,0.10992339,20455.0,20448.0,0.01628064]
[1673688171474,0.16718706,20454.0,20448.0,0.20700659]
[1673688171720,0.322406,20453.0,20449.0,0.37846494]
[1673688172008,4.79497545,20453.0,20449.0,0.17641023]
[1673688172505,0.322406,20452.0,20449.0,0.15033448]
[1673688172811,0.16718706,20452.0,20447.0,0.15177377]
[1673688173012,0.48959306,20451.0,20446.0,0.6348]
[1673688173362,0.08109567,20457.0,20448.0,0.15473027]
[1673688173363,0.19586506,20450.0,20448.0,0.15473027]
[1673688173519,0.00161567,20457.0,20446.0,0.6348]
[1673688173520,0.07958,20453.0,20449.0,0.15439614]
[1673688173810,0.00161567,20457.0,20449.0,0.14980664]
[1673688174020,0.911272,20456.0,20445.0,0.11628064]
[1673688174278,0.58371936,20453.0,20445.0,0.1]
[1673688174517,0.58371936,20451.0,20444.0,0.3]
[1673688174762,0.322406,20450.0,20444.0,0.3]
[1673688175008,1.07270236,20451.0,20435.0,0.01628064]
[1673688175009,0.58371936,20448.0,20435.0,0.01628064]
[1673688175266,0.811485,20447.0,20435.0,0.09653064]
[1673688175511,0.19072595,20446.0,20443.0,0.01628064]
[1673688175771,0.08067,20456.0,20445.0,0.18021064]
[1673688176063,0.08067,20456.0,20445.0,0.56041568]
[1673688176064,0.1,20452.0,20445.0,0.56041568]
[1673688176278,0.1,20452.0,20445.0,0.01628064]
[1673688176523,0.1,20452.0,20443.0,0.38020504]
[1673688176524,0.1,20452.0,20443.0,0.19946024]
[1673688176776,0.1,20452.0,20442.0,0.16903158]
[1673688176777,1.47822064,20451.0,20442.0,0.16903158]
[1673688177026,0.31940395,20450.0,20442.0,0.19354775]
[1673688177265,0.51313195,20449.0,20442.0,0.19354775]
[1673688177527,0.21940395,20448.0,20442.0,0.20982839]
[1673688177789,0.322406,20447.0,20442.0,0.20982839]
[1673688178029,0.1,20449.0,20442.0,0.20982839]
[1673688178030,0.1,20452.0,20447.0,0.01628064]
[1673688178282,0.18044774,20451.0,20448.0,0.190834]
[1673688178526,0.18044774,20451.0,20445.0,0.38020504]
[1673688178527,0.47720169,20451.0,20445.0,0.38020504]
[1673688178792,0.47720169,20451.0,20442.0,0.19300655]
[1673688178793,0.322406,20450.0,20442.0,0.01628064]
[1673688179046,0.21940395,20449.0,20445.0,0.01628064]
[1673688179292,0.15149327,20449.0,20445.0,0.01628064]
[1673688179586,0.00161567,20457.0,20448.0,0.41031326]
[1673688179799,0.00161567,20457.0,20454.0,0.39376446]
[1673688180043,0.51465855,20469.0,20451.0,0.08173]
[1673688180044,0.02609355,20469.0,20456.0,0.57401324]
[1673688180309,0.1769165,20467.0,20463.0,0.01628064]
[1673688180553,0.02609355,20469.0,20463.0,0.01628064]
[1673688180554,0.02609355,20469.0,20463.0,0.39301217]
[1673688180816,0.02609355,20469.0,20464.0,0.20690964]
[1673688181053,0.00609355,20469.0,20464.0,1.01628064]
[1673688181314,0.00609355,20469.0,20466.0,0.01628064]
[1673688181575,0.00609355,20469.0,20467.0,0.39293384]
[1673688181828,0.00609355,20469.0,20468.0,0.88229817]
[1673688182125,0.00609355,20469.0,20468.0,3.37023517]
[1673688182335,0.00609355,20469.0,20468.0,4.20686364]
[1673688182582,1.488284,20480.0,20468.0,5.46354138]
[1673688182583,1.0,20480.0,20468.0,5.46354138]
[1673688182832,0.16356278,20475.0,20470.0,0.01628064]
[1673688183079,0.04694631,20477.0,20473.0,0.01480279]
[1673688183328,0.27183595,20479.0,20473.0,0.01480279]
[1673688183329,0.19035989,20479.0,20473.0,0.01480279]
[1673688183597,0.67905895,20478.0,20469.0,0.1]
[1673688183866,0.99033364,20477.0,20469.0,0.098184]
[1673688184105,0.99033364,20477.0,20464.0,0.17230205]
[1673688184106,1.0623989,20475.0,20462.0,0.29287229]
[1673688184367,1.0623989,20475.0,20472.0,0.09636798]
[1673688184368,0.58519721,20473.0,20472.0,0.09636798]
[1673688184645,0.47720169,20466.0,20463.0,0.36224099]
[1673688184875,0.51313195,20465.0,20454.0,0.01480279]
[1673688185125,0.61387521,20464.0,20451.0,0.36196494]
[1673688185379,0.61387521,20464.0,20446.0,0.08148]
[1673688185380,1.955018,20461.0,20449.0,2.0]
[1673688185679,0.028678,20460.0,20459.0,0.09989404]
[1673688185954,0.028678,20460.0,20443.0,0.08139]
[1673688185955,0.47720169,20455.0,20443.0,0.08139]
[1673688186203,1.29033364,20454.0,20437.0,0.08148]
[1673688186455,0.02471883,20443.0,20440.0,0.05480685]
[1673688186710,0.02471883,20443.0,20442.0,0.1]
[1673688186954,0.21544478,20443.0,20442.0,0.1]
[1673688187250,0.21544478,20443.0,20435.0,5.0]
[1673688187505,0.21544478,20443.0,20439.0,0.19306698]
[1673688187506,0.3439987,20442.0,20439.0,0.19306698]
[1673688187746,0.02471883,20443.0,20441.0,0.39259495]
[1673688187992,0.02471883,20443.0,20442.0,0.66322034]
[1673688188243,0.02471883,20443.0,20442.0,0.271894]
[1673688188637,0.02471883,20443.0,20442.0,0.08099]
[1673688188862,0.02471883,20443.0,20441.0,0.17155138]
[1673688189089,0.02471883,20443.0,20434.0,0.38638709]
[1673688189090,0.51313195,20442.0,20436.0,4.16825514]
[1673688189301,0.18572595,20441.0,20438.0,0.1]
[1673688189523,0.51313195,20440.0,20435.0,0.15817106]
[1673688189735,0.028678,20439.0,20432.0,0.02809126]
[1673688189948,0.08226,20444.0,20432.0,0.02809126]
[1673688190157,0.79736704,20445.0,20432.0,0.02809126]
[1673688190158,0.978354,20443.0,20432.0,0.02809126]
[1673688190379,0.322406,20442.0,20432.0,0.02809126]
[1673688190589,0.1,20442.0,20432.0,0.02809126]
[1673688191111,0.19072595,20442.0,20438.0,0.47720169]
[1673688191329,0.08526517,20449.0,20440.0,0.1]
[1673688191557,0.08526517,20449.0,20443.0,0.47720169]
[1673688191558,0.00064776,20449.0,20443.0,0.47720169]
[1673688191779,0.0001,20450.0,20444.0,0.6252987]
[1673688191996,0.08294,20458.0,20445.0,0.97709401]
[1673688192208,0.08294,20458.0,20448.0,0.1]
[1673688192430,0.488699,20463.0,20451.0,0.47720169]
[1673688192637,0.08294,20465.0,20453.0,0.5233317]
[1673688192894,0.67938795,20465.0,20454.0,3.87709401]
[1673688193120,0.571414,20468.0,20454.0,3.87709401]
[1673688193121,0.571414,20468.0,20455.0,1.06782601]
[1673688193335,0.25876944,20470.0,20455.0,1.06782601]
[1673688193336,0.08284,20470.0,20456.0,0.87709401]
[1673688193572,0.488413,20475.0,20460.0,0.488753]
[1673688193778,0.36963092,20481.0,20460.0,0.488753]
[1673688193779,0.08311,20478.0,20461.0,0.66546862]
[1673688193985,0.36963092,20481.0,20466.0,0.977196]
[1673688193986,0.28652092,20481.0,20466.0,0.977196]
[1673688194200,0.14203358,20479.0,20467.0,0.85604862]
[1673688194410,0.28652092,20481.0,20467.0,6.0]
[1673688194646,0.28652092,20481.0,20470.0,0.47720169]
[1673688194647,0.67904195,20479.0,20470.0,0.47720169]
[1673688194882,0.67904195,20479.0,20468.0,1.16249811]
[1673688194883,0.38886809,20469.0,20468.0,1.16249811]
[1673688195153,0.38886809,20469.0,20463.0,0.08334]
[1673688195368,0.38886809,20469.0,20465.0,0.08334]
[1673688195589,0.38886809,20469.0,20466.0,0.190601]
[1673688195810,0.12354055,20469.0,20468.0,0.47720169]
[1673688196040,0.19072595,20479.0,20468.0,1.86326835]
[1673688196309,1.0,20480.0,20473.0,0.1]
[1673688196531,1.0,20480.0,20474.0,0.66771169]
[1673688196740,1.0,20480.0,20475.0,0.72297202]
[1673688196959,1.0,20480.0,20476.0,0.66768369]
[1673688197186,0.00221517,20487.0,20477.0,0.77720169]
[1673688197408,0.32835636,20494.0,20478.0,1.11981319]
[1673688197623,0.08436,20490.0,20478.0,5.53979889]
[1673688197834,0.67880195,20489.0,20478.0,5.51489662]
[1673688198047,0.19072595,20488.0,20479.0,0.83114785]
[1673688198288,5.36737145,20491.0,20481.0,0.47720169]
[1673688198289,4.79497545,20491.0,20481.0,0.47720169]
[1673688198502,4.79497545,20491.0,20480.0,0.46641376]
[1673688198503,4.79497545,20491.0,20484.0,0.47720169]
[1673688198746,0.08436,20497.0,20485.0,0.47720169]
[1673688198747,4.92828176,20494.0,20485.0,0.47720169]
[1673688198958,5.12922817,20494.0,20485.0,5.0]
[1673688199172,5.12922817,20494.0,20487.0,0.1]
[1673688199173,0.04894631,20491.0,20487.0,0.1]
[1673688199382,0.04894631,20491.0,20486.0,4.0]
[1673688199383,0.19072595,20491.0,20486.0,4.0]
[1673688199603,4.87933545,20494.0,20481.0,0.36641376]
[1673688199604,0.51313195,20490.0,20481.0,0.36641376]
[1673688199801,0.51313195,20490.0,20480.0,0.1]
[1673688199802,0.19072595,20489.0,20482.0,0.47720169]
[1673688200038,0.19072595,20488.0,20481.0,0.36641376]
[1673688200223,0.16543795,20490.0,20484.0,0.1]
[1673688200224,0.19072595,20487.0,20484.0,0.1]
[1673688200587,0.975912,20494.0,20484.0,3.47720169]
[1673688200822,0.975912,20494.0,20485.0,0.190372]
[1673688200823,0.19072595,20493.0,20485.0,0.190372]
[1673688201057,0.18687779,20493.0,20484.0,0.47720169]
[1673688201531,0.19072595,20493.0,20486.0,0.47720169]
[1673688201533,0.19072595,20493.0,20486.0,0.96533669]
[1673688201781,0.19072595,20493.0,20487.0,0.96754169]
[1673688202032,0.34683776,20495.0,20493.0,0.1078276]
[1673688202287,0.20005043,20495.0,20493.0,0.29855355]
[1673688202530,0.08479,20499.0,20494.0,0.34820422]
[1673688202531,0.16875,20499.0,20494.0,0.34820422]
[1673688202774,0.0001,20500.0,20495.0,0.190255]
[1673688203040,0.0001,20500.0,20493.0,0.1078276]
[1673688203287,0.16508594,20500.0,20494.0,0.290256]
[1673688203539,4.79507545,20500.0,20494.0,0.1]
[1673688203784,4.79507545,20500.0,20493.0,0.1078276]
[1673688203785,4.79507545,20500.0,20495.0,0.678168]
[1673688204043,0.0018721,20501.0,20496.0,0.96792764]
[1673688204283,0.0018721,20501.0,20497.0,1.93388264]
[1673688204284,2.1e-06,20501.0,20497.0,1.93388264]
[1673688204532,2.1e-06,20501.0,20498.0,0.66792764]
[1673688204533,2.40099955,20501.0,20498.0,0.66792764]
[1673688204782,0.00110847,20507.0,20499.0,1.26502969]
[1673688205056,0.18693276,20506.0,20500.0,0.38091995]
[1673688205286,0.18693276,20506.0,20494.0,0.487938]
[1673688205287,0.322406,20505.0,20493.0,0.0908756]
[1673688205533,0.322406,20505.0,20482.0,0.573255]
[1673688205534,0.6,20500.0,20484.0,11.0]
[1673688205793,0.6,20500.0,20482.0,0.573255]
[1673688205794,0.19072595,20497.0,20488.0,0.15440086]
[1673688206038,0.51313195,20496.0,20486.0,0.08532]
[1673688206369,0.19072595,20495.0,20487.0,0.18532]
[1673688206550,0.487793,20501.0,20487.0,0.18532]
[1673688206551,0.19072595,20494.0,20489.0,0.47720169]
[1673688206803,0.08552,20503.0,20491.0,0.47720169]
[1673688207087,2.41413473,20505.0,20491.0,0.47720169]
[1673688207088,2.26050955,20505.0,20494.0,0.975866]
[1673688207329,2.26050955,20503.0,20495.0,0.65457751]
[1673688207583,2.26050955,20503.0,20497.0,1.463598]
[1673688207822,0.19072595,20503.0,20498.0,0.96741469]
[1673688208063,0.91602859,20503.0,20500.0,0.1]
[1673688208309,0.91602859,20503.0,20499.0,0.95821142]
[1673688208310,0.00236594,20502.0,20501.0,0.19018]
[1673688208805,0.00236594,20502.0,20501.0,0.190178]
[1673688209054,0.00236594,20502.0,20501.0,5.190178]
[1673688209306,0.00110847,20507.0,20502.0,0.10236]
[1673688209547,0.00110847,20507.0,20503.0,0.66735969]
[1673688209802,0.00110847,20507.0,20502.0,0.590098]
[1673688210049,0.00110847,20507.0,20504.0,0.1]
[1673688210321,0.00715515,20508.0,20505.0,1.45268262]
[1673688210322,1.362e-05,20508.0,20505.0,1.45268262]
[1673688210557,0.487214,20525.0,20506.0,0.96732069]
[1673688210803,3.0,20520.0,20507.0,0.84981315]
[1673688211053,3.19072595,20520.0,20510.0,0.975126]
[1673688211302,3.19072595,20520.0,20511.0,1.24981315]
[1673688211586,3.19072595,20520.0,20513.0,0.487486]
[1673688211836,3.19072595,20520.0,20514.0,0.77720169]
[1673688211837,3.0,20520.0,20514.0,0.77720169]
[1673688212096,2.995,20520.0,20516.0,0.1]
[1673688212358,2.995,20520.0,20516.0,0.3]
[1673688212616,3.34142213,20520.0,20517.0,0.189982]
[1673688212858,3.34142213,20520.0,20516.0,6.3]
[1673688213104,3.34142213,20520.0,20515.0,0.487447]
[1673688213105,3.34142213,20520.0,20517.0,0.18998]
[1673688213357,3.34122233,20520.0,20517.0,1.0]
[1673688213605,3.34122233,20520.0,20518.0,0.189971]
[1673688213873,3.34122233,20520.0,20517.0,0.96145758]
[1673688214111,3.53194828,20520.0,20513.0,0.48546107]
[1673688214364,0.19072595,20519.0,20514.0,0.19427739]